Cogmind - Beta 10.2 @@@ ROGUE MODE // 2021.07.14 @ 23:19:58 Player: Killer 14 Result: Destroyed by G-47 Trooper with Particle Gun Performance ------------- Evolutions (1) 500 Regions Visited (3) 600 Robots Destroyed (26) 130 Value Destroyed (892) 892 Prototype IDs (0) 0 Alien Tech Used (0) 0 Bonus (0) 0 TOTAL SCORE: 2122 Bonus ------- None Cogmind --------- Core Integrity 0/400 Matter 208/300 Energy 265/265 System Corruption 3% Temperature Cool (9) Movement Walking (180) Ox2 Location -9/Materials Parts ------- > --- POWER (1) -------- Improved Ion Engine > --- PROPULSION (4) --- Aluminum Leg Aluminum Leg > --- UTILITY (2) ------ High-capacity Storage Unit > --- WEAPON (2) ------- High-powered Shotgun High-powered Shotgun > --- INVENTORY (12) --- Improved Ion Engine Improved Heat Sink High-capacity Matter Pod (200) Visual Processing Unit Targeting Computer Beam Rifle Particle Gun Heavy Assault Rifle Heavy Assault Rifle EMP Blaster Mining Laser Peak State ------------ > --- POWER ------------ Improved Ion Engine > --- PROPULSION ------- Aluminum Leg Aluminum Leg Carbon-fiber Leg Carbon-fiber Leg > --- UTILITY ---------- Heat Sink High-capacity Storage Unit > --- WEAPON ----------- Beam Rifle Heavy Assault Rifle > --- INVENTORY -------- Improved Ion Engine Aluminum Leg Heat Sink High-capacity Matter Pod Sensor Array Targeting Computer Core Shielding Grenade Launcher Grenade Launcher Mining Laser [Rating: 17] Favorites ----------- Power Improved Ion Engine Engine Improved Ion Engine Power Core Light Nuclear Core Propulsion Aluminum Leg Leg Aluminum Leg Utility High-capacity Storage Unit Device Heat Sink Storage High-capacity Storage Unit Protection Light Armor Plating Weapon Assault Rifle Energy Gun Beam Rifle Ballistic Gun Assault Rifle Launcher EMP Blaster Build | -11 -10 -10 -9 ------- Run | Scr Mat Min Mat Slots Evolved 2 | . . . 2 Power . | . . . . Propulsion 2 | . . . 2 Utility . | . . . . Weapon . | . . . . Parts Attached 41 | 6 1 3 31 Power 6 | 1 . 1 4 Engine 5 | 1 . 1 3 Core 1 | . . . 1 Reactor . | . . . . Propulsion 13 | 2 . . 11 Treads . | . . . . Leg 13 | 2 . . 11 Wheel . | . . . . Hover . | . . . . Flight . | . . . . Utility 8 | 1 1 2 4 Device 3 | . 1 1 1 Storage 2 | 1 . 1 . Processor . | . . . . Hackware . | . . . . Protection 3 | . . . 3 Artifact . | . . . . Weapon 14 | 2 . . 12 Energy Gun 4 | . . . 4 Energy Cannon . | . . . . Ballistic Gun 7 | 2 . . 5 Ballistic Cannon . | . . . . Launcher 3 | . . . 3 Special Weapon . | . . . . Impact Weapon . | . . . . Slashing Weapon . | . . . . Piercing Weapon . | . . . . Special Melee Weapon . | . . . . Unidentified Prototypes . | . . . . Parts Lost 15 | . . . 15 Power 2 | . . . 2 Propulsion 5 | . . . 5 Utility 2 | . . . 2 Weapon 6 | . . . 6 Highest Loss Streak 6 | . . . 6 Average Slot Usage (%) 95 | . 90 100 94 Engine 9 | . 14 14 7 Core 2 | . . . 3 Leg 35 | . 28 28 40 Device 6 | . 4 14 3 Storage 12 | . 14 14 11 Protection 4 | . . . 6 Energy Gun 1 | . . . 1 Ballistic Gun 16 | . 28 28 8 Launcher 6 | . . . 10 Naked Turns . | . . . . Heaviest Build 50 | 13 14 44 50 Greatest Support 50 | 20 20 20 50 Greatest Overweight (x) 2 | . . 2 2 Average Overweight (x) . | . . . . Largest Inventory Capacity 12 | 6 6 12 12 Average Capacity 9 | 4 6 7 12 Most Carried 12 | 1 5 11 12 Average Carried 8 | . 3 6 11 Final Capacity 12 | 6 6 12 12 Final Carried 11 | 1 5 11 11 Class Distribution -------------------- 52% | Mutant 47% | Scavenger-Mutant Dominant Class ---------------- Mutant | -10/Materials Mutant | -10/Mines Scavenger-Mutant | -9/Materials Resources | -11 -10 -10 -9 ----------- Run | Scr Mat Min Mat Matter Collected 1092 | 242 42 56 752 Remotely . | . . . . Salvage Created 1186 | . 42 109 1035 Parts 71 | . 2 10 59 Haulers Intercepted . | . . . . Recyclers Shooed . | . . . . Parts Field Recycled . | . . . . Retrieved Matter . | . . . . Parts Self-Destructed . | . . . . Prevented . | . . . . Kills | -11 -10 -10 -9 ------- Run | Scr Mat Min Mat Combat Hostiles Destroyed 22 | . 1 2 19 Guns 12 | . 1 2 9 AOE 10 | . . . 10 Classes Destroyed 7 | . 1 1 5 Worker 1 | . . . 1 Builder 1 | . . . 1 Recycler 1 | . . . 1 Watcher 1 | . . . 1 Swarmer 2 | . . . 2 Grunt 12 | . 1 . 11 Sentry 8 | . . 2 6 Best Kill Streak 4 | . 1 2 4 Combat Bots Only 3 | . 1 2 3 Max Kills in Single Turn 4 | . 1 1 4 Gunslinging . | . . . . Exploded 2 | . . . 2 Melee . | . . . . Uniques/NPCs Destroyed . | . . . . Combat | -11 -10 -10 -9 -------- Run | Scr Mat Min Mat Damage Taken 2231 | 2 112 145 1972 Core 492 | . 44 43 405 Absorbed by Shields . | . . . . Core Remaining (%) 82 | 100 . 65 . Volleys Fired 82 | . 9 5 68 Largest 2 | . 2 2 2 Hottest 89 | . 40 40 89 Shots Fired 146 | . 18 10 118 Gun 106 | . 18 10 78 Cannon . | . . . . Launcher 40 | . . . 40 Special . | . . . . Kinetic 95 | . 18 10 67 Thermal 11 | . . . 11 Explosive . | . . . . Electromagnetic 40 | . . . 40 Robot Hit Streak 12 | . 4 4 12 Robot Miss Streak 3 | . 2 2 3 Penetration Max . | . . . . Secondary Targets . | . . . . Shots Hit Robots 69 | . 11 6 52 Core Hits 47 | . 2 4 41 Critical Hits . | . . . . Critical Kills . | . . . . Critical Parts Destroyed . | . . . . Melee Attacks . | . . . . Impact . | . . . . Slashing . | . . . . Piercing . | . . . . Sneak Attacks . | . . . . Combat Hostiles . | . . . . Follow-up Attacks . | . . . . Damage Inflicted 1887 | 4 168 98 1617 Guns 953 | . 168 98 687 Cannons . | . . . . Explosions 915 | . . . 915 Melee . | . . . . Ramming 19 | 4 . . 15 Kinetic 864 | . 168 98 598 Thermal 169 | . . . 169 Explosive . | . . . . Electromagnetic 835 | . . . 835 Impact . | . . . . Slashing . | . . . . Piercing . | . . . . Highest Corruption 3 | . . . 3 Average Corruption 1 | . . . 1 Corruption Purged . | . . . . Effects 1 | . . . 1 Matter Fused 1 | . . . 1 Overload Shots . | . . . . Overflow Damage 11 | . . . 11 Projectiles . | . . . . Explosions 11 | . . . 11 Melee . | . . . . Knockbacks . | . . . . Impact . | . . . . Kinetic . | . . . . Secondary . | . . . . Self-Inflicted Damage 86 | 2 . . 84 Shots 9 | . . . 9 Rammed 1 | 1 . . . Targets Rammed 3 | 1 . . 2 Kicked 2 | . . . 2 Crushed . | . . . . Highest Temperature 57 | . . . 57 Average Temperature 15 | . . . 15 Received Heat Transfer 834 | . 60 54 720 Siege Activations . | . . . . Robots Corrupted . | . . . . Combat Hostiles . | . . . . Parts Fried 3 | . . . 3 Impact Corruptions . | . . . . Robots Melted . | . . . . Combat Hostiles . | . . . . Parts Melted . | . . . . Heat Transferred 272 | . . . 272 Parts Sabotaged . | . . . . Parts Stolen . | . . . . Parts Stripped . | . . . . Power Chain Reactions 2 | . . . 2 Missiles Intercepted . | . . . . Alert | -11 -10 -10 -9 ------- Run | Scr Mat Min Mat Peak Influence 295 | . 35 68 295 Initial 13 | . . 13 . Average 101 | . 13 55 151 Maximum Alert Level 1 | . . . 1 Low Security (%) 80 | 100 100 100 64 Level 1 19 | . . . 35 Level 2 . | . . . . Level 3 . | . . . . Level 4 . | . . . . Level 5 . | . . . . High Security . | . . . . Max Security . | . . . . Squads Dispatched 4 | . . . 4 Investigation 2 | . . . 2 Extermination . | . . . . Reinforcement 2 | . . . 2 Assault . | . . . . Garrison . | . . . . Intercept . | . . . . Construction Impeded . | . . . . Haulers Reinforced . | . . . . Stealth | -11 -10 -10 -9 --------- Run | Scr Mat Min Mat Distress Signals 3 | . . . 3 Communications Jammed . | . . . . Distress Signals . | . . . . Times Spotted 33 | . 2 2 29 Peak Tracking Total 7 | . 2 2 7 Tactical Retreats 6 | . 1 . 5 Traps | -11 -10 -10 -9 ------- Run | Scr Mat Min Mat Traps Triggered 4 | . . . 4 Indirectly 2 | . . . 2 Trap Hack Attempts . | . . . . Triggered . | . . . . Disarmed . | . . . . Reprogrammed . | . . . . Reused . | . . . . Traps Extracted . | . . . . Installed . | . . . . Triggered . | . . . . Machines | -11 -10 -10 -9 ---------- Run | Scr Mat Min Mat Machines Disabled 5 | . . . 5 Max in Single Turn 2 | . . . 2 Machines Sabotaged . | . . . . Garrisons Compromised . | . . . . Overloaded Fab Kills . | . . . . Fab Network Shutdowns . | . . . . Hacking | -11 -10 -10 -9 --------- Run | Scr Mat Min Mat Machines Accessed . | . . . . Terminals . | . . . . Fabricators . | . . . . Repair Stations . | . . . . Recycling Units . | . . . . Scanalyzers . | . . . . Garrison Access . | . . . . Total Hacks . | . . . . Successful . | . . . . Failed . | . . . . Catastrophic . | . . . . Database Lockouts . | . . . . Manual . | . . . . Terminals . | . . . . Fabricators . | . . . . Repair Stations . | . . . . Recycling Units . | . . . . Scanalyzers . | . . . . Garrison Access . | . . . . Terminal Hacks . | . . . . Fabricator Hacks . | . . . . Repair Station Hacks . | . . . . Recycling Unit Hacks . | . . . . Scanalyzer . | . . . . Garrison Access Hacks . | . . . . Unauthorized Hacks . | . . . . Terminals . | . . . . Fabricators . | . . . . Repair Stations . | . . . . Recycling Units . | . . . . Scanalyzers . | . . . . Garrison Access . | . . . . Data Cores Recovered . | . . . . Used . | . . . . Hacking Detections . | . . . . Full Trace Events . | . . . . Feedback Events . | . . . . Feedback Blocked . | . . . . Robot Schematics Acquired . | . . . . Robots Built . | . . . . Matter . | . . . . Time . | . . . . Total Robot Build Rating . | . . . . Part Schematics Acquired . | . . . . Parts Built . | . . . . Matter . | . . . . Time . | . . . . Total Part Build Rating . | . . . . Parts Repaired . | . . . . Time . | . . . . Parts Recycled . | . . . . Recycled Matter . | . . . . Retrieved Matter . | . . . . Retrieved Components . | . . . . Parts Scanalyzed . | . . . . Part Schematics Acquired . | . . . . Parts Damaged . | . . . . Bothacking | -11 -10 -10 -9 ------------ Run | Scr Mat Min Mat Used RIF Installer . | . . . . Robots Hacked . | . . . . Non-combat . | . . . . Combat . | . . . . Robot Hacks Applied . | . . . . Relay Couplers Released . | . . . . Robots Rewired . | . . . . Allies Hacked . | . . . . Hacks Repelled . | . . . . Allies | -11 -10 -10 -9 -------- Run | Scr Mat Min Mat Total Allies 1 | . . 1 . Largest Group 1 | . . 1 1 Highest-Rated Group 31 | . . 31 31 Highest-Rated Ally 31 | . . 31 31 Total Orders . | . . . . Ally Attacks 3 | . . . 3 Total Damage 65 | . . . 65 Kills . | . . . . Allies Corrupted . | . . . . Allies Melted . | . . . . Intel | -11 -10 -10 -9 ------- Run | Scr Mat Min Mat Robot Analysis Total . | . . . . Derelict Logs Recovered 1 | . . 1 . Drone Launches . | . . . . Drone Recoveries . | . . . . Exploration | -11 -10 -10 -9 ------------- Run | Scr Mat Min Mat Turns Passed 1724 | 72 216 469 967 Spaces Moved 1035 | 54 153 342 486 Core 4 | 4 . . . Treads . | . . . . Legs 1031 | 50 153 342 486 Wheels . | . . . . Hover . | . . . . Flight . | . . . . Fastest Speed 50 | 50 120 120 120 Average Speed 135 | 114 120 129 146 Slowest Speed 180 | 120 120 180 180 Overloaded Moves . | . . . . Propulsion Burnouts . | . . . . Robots Hopped . | . . . . Cave-ins Triggered . | . . . . Exploration Rate (%) 33 | 4 27 65 36 Regions Visited 3 Branch Regions 1 Pre-discovered Areas 1 | . . 1 . Known Exits Taken . | . . . . Unknown Exits Taken 3 | 1 1 1 . Scrap Searched . | . . . . Spaces Dug 1 | . . . 1 Terrain Destroyed 6 | . . . 6 Melee . | . . . . Projectile . | . . . . AOE 6 | . . . 6 Terrain Rammed . | . . . . Walls Destroyed . | . . . . Machines Disabled . | . . . . Actions | -11 -10 -10 -9 --------- Run | Scr Mat Min Mat Total 1213 | 61 167 361 624 Wait 10 | . . 1 9 Move 1032 | 53 152 341 486 Hop . | . . . . Pick Up 27 | 1 5 7 14 Fast Attach 13 | 6 . . 7 Attach 10 | . 1 . 9 Detach . | . . . . Swap 18 | . . 3 15 Drop 18 | . . 4 14 Fire 82 | . 9 5 68 Melee . | . . . . Ram . | . . . . Kick 3 | 1 . . 2 Crush . | . . . . Escape Stasis . | . . . . Rewire . | . . . . Trap . | . . . . Miscellaneous . | . . . . Route ------- -11/Scrapyard -10/Materials -10/Mines -9/Materials History --------- Turn | Location | Event 12 | -11/Scrapyard | Discovered new exit (range 15) 73 | -11/Scrapyard | Entered Materials 258 | -10/Materials | Discovered new exit (range 16) 289 | -10/Materials | Entered Mines 307 | -10/Mines | Build established: Mutant 741 | -10/Mines | Discovered new exit (range 7) 745 | -10/Mines | Received a Mining Laser from a helpful Derelict 758 | -10/Mines | Entered Materials 758 | -9/Materials | Accompanied by 1 ally 758 | -9/Materials | Evolved 2 slots: Propulsion x2 1047 | -9/Materials | Lost 5 parts (2n3w) 1272 | -9/Materials | Core integrity fell below 50% 1362 | -9/Materials | Build established: Scavenger-Mutant 1653 | -9/Materials | Core integrity fell below 20% 1719 | -9/Materials | Lost 6 parts (1p2n1u2w) 1725 | -9/Materials | Destroyed by G-47 Trooper with Particle Gun Last Messages --------------- 01661_ G-34 Mercenary misfires. 01668_ G-34 Mercenary destroyed. 01668_ Door malfunctions. 01671_ EMP Blaster destroyed. 01679_ K-01 Serf collects debris. 01685_ U-05 Engineer lays Concrete. 01688_ EMP Trap short circuited. 01688_ A bubble of electromagnetic force engulfs the area. 01688_ Aluminum Leg destroyed. 01688_ K-01 Serf collects debris. 01688_ U-05 Engineer lays Concrete. 01690_ G-34 Mercenary IFF system glitched. 01690_ U-05 Engineer lays Concrete. 01692_ G-47 Trooper IFF system glitched. 01692_ K-01 Serf destroyed. 01708_ Acquired Hpw. Shotgun. 01710_ System corrupted: Matter fused (-8). 01711_ Acquired Hpw. Shotgun. 01715_ G-34 Mercenary destroyed. 01723_ G-47 Trooper IFF system glitched. Map ----- +----------------------------------------------------+ | | | | | | | | | ???????????????????????????????????????????####### | | ???????????????????????????????????????????# | | ???????????????????????????????????????????#! | | ???????????????????????????????????????????# | | ???????????????????????????????????????????# !" | | ???????????????????????????????????#######?#####+# | | ???????????????????????????????????# #???# | | ???????????????????????????????????# ##### ! | | ???????????????????????????????????# [ * | | ????????????????##+????????????????# ##### ! | | ???????????????? ???????????????# #???# | | ????????????????? ???????????????### ###???##### | | ?????????????????? ????????????????# #?????????? | | ??????????????????# ????????????????# #?######### | | ??????????????????# ???????????????# #?# % | | ??????????????????# ################ ### """ | | ??????????????????+ = # "T" | | ??????????????????# % % # | | ??????????????????# = / | | ??????????????????# *g! % = # """ | | ??????????????????# # ### %%% # """ | | ??????????????????????# @ #?# "= # ! """ | | ??????????????????????#// !!#?# # | | ??????????????????????#//[[!!#?# #/####### | | ??????????????????????########?# #%#?????? | | ???????????????????????????????# ]] #[#?????? | | ?????????????????????????????### ]] #=#?????? | | ?????????????????????????????+ ] # #?????? | | ?????????????????????????????## % ## ####### | | ??????????????????????????????# ! ## + | | ??????????????????????????????# ! = #=# | | ??????????????????????????????# =%%%!# | | ??????????????????????????????# [|=*/ | | ??????????????????????????????# != # | | ??????????????????????????????# "T # | | ??????????????????????????????# """ #####/# | | ??????????????????????????????## ####### #?????# | | ???????????????????????????????# ??????# #?????? | | ???????????????????????????????# ??????# #?????? | | ????????????????????????????????? ??????#/#?????? | | ????????????????????????????????????????? #?????? | | ????????????????????????????????????????? #?????? | | ?????????????????????????????????????????" +?????? | | ?????????????????????????????????????????" #?????? | | ????????????????????????????????????????"" #?????? | | ???????????????????????????????????????? #?????? | +----------------------------------------------------+ Best States ------------- Heat Dissipation 42 Energy Generation 14 Energy Capacity 265 Matter Stores 300 Matter Capacity 300 Sight Range 16 Terrain Scan Density 10 Armor Coverage 150 Core Shielding 20 Evasion (%) 40 Item Schematics ----------------- None Robot Schematics ------------------ None Fabricated ------------ Nothing Alien Tech Used ----------------- None Achievements -------------- None Challenges ------------ None Game ------ Seed AerolevGyrokineticLaser Manual? 0 Play Time 00:21:13 Cumulative 3.1 hours Start 2021.07.14 @ 22:59:27 End 2021.07.14 @ 23:19:58 Sessions 1 Manual Loads 0 Difficulty Rogue Special Mode None Game No. 8 Rogue 8 Adventurer 0 Explorer 0 Win Type - Total 0 Types 0/0/0/0/0/0/0/0/0 Lore% 1 Gallery% 8 Achievement% 7 Wizard Run 0 Options --------- ASCII 0 Keyboard 0 Movement Numpad Keybinds 0 Fullscreen 1 Font 18/SmallcapsGlow Map View 76x50 Tactical HUD 1 Map Filters NONE Filters NONE Steam 1 RUN: 2adccd14-8283-47b2-874a-a8e37e0abbda